[Event "5th Sharjah Masters 2022"]
[Site "Sharjah"]
[Date "2022.05.24"]
[Round "4.6"]
[White "Sargissian, Gabriel"]
[Black "Sadhwani, Raunak"]
[Result "1/2-1/2"]
[ECO "D38"]
[WhiteElo "2694"]
[BlackElo "2619"]
[Annotator "TA"]
[PlyCount "101"]
[EventDate "2022.05.21"]
[EventType "swiss"]
[EventCountry "UAE"]
[SourceTitle "playchess.com"]
[Source "ChessBase"]
[SourceQuality "1"]
[TimeControl "5400+30"]

{[%evp 14,100,22,19,16,8,18,18,17,11,11,11,10,0,0,11,10,12,5,0,8,10,19,0,0,-15,0,0,6,11,7,11,11,7,22,17,16,12,32,31,33,35,35,0,0,0,0,0,0,0,0,0,0,0,0,0,0,0,0,0,0,0,0,0,0,0,0,0,0,0,0,0,0,0,0,0,0,0,0,0,0,0,0,0,0,0,0,0,0]} 1. d4 {[%emt 0:00:03]} Nf6 {[%emt 0:00:07]} 2. c4 {[%emt 0:00:09]} e6 {[%emt 0:00:05]} 3. Nf3 {[%emt 0:00:30]} d5 {[%emt 0:00:06]} 4. Nc3 {[%emt 0:00:04]} Bb4 {[%emt 0:00:05]} 5. Bg5 {[%emt 0:00:30]} h6 {[%emt 0:00:36]} 6. Bxf6 {[%emt 0:00:26]} Qxf6 {[%emt 0:00:06]} 7. Qa4+ {[%emt 0:00:32]} Nc6 {[%emt 0:00:05]} 8. e3 {[%emt 0:00:14]} O-O {[%emt 0:00:25] D38: Queen's Gambit Declined: Ragozin Defence (4 Nf3 Bb4).} 9. Be2 {[%emt 0:00:19]} dxc4 {[%emt 0:00:40]} 10. O-O {[%emt 0:01:12]} Bd7 {[%emt 0:04:16] Threatens to win with ...Bxc3.} 11. Bxc4 {[%emt 0:02:11]} Bxc3 {[%emt 0:00:06]} 12. bxc3 {[%emt 0:00:07]} Rfd8 {[%emt 0:00:24][%cal Oc6d4] Hoping for ...Nxd4!} 13. Be2 {[%emt 0:03:19]} Be8 {[%emt 0:00:24][%cal Oc6d4] [#] White must now prevent ...Nxd4!} (13... e5 {feels hotter.} 14. Qc2 Bf5 15. Bd3 Bxd3 16. Qxd3 b6) 14. Qa3 {[%emt 0:02:27]} Qe7 {[%emt 0:00:21]} 15. Qxe7 {[%emt 0:00:22]} Nxe7 {[%emt 0:00:04]} 16. Rfb1 {[%emt 0:06:22]} Rab8 {[%emt 0:04:53]} 17. a4 {[%emt 0:01:45] [#]} c5 $146 {[%emt 0:02:34]} ({Predecessor:} 17... Nd5 18. Rb3 a5 19. Ne5 Nb6 20. Bb5 f6 21. Bxe8 Rxe8 22. Nf3 Nc4 23. Kf1 b6 {½-½ (39) Raessler,A (2347)-Langer,R (2451) ICCF email 2021}) 18. Bb5 {[%emt 0:08:16]} Nd5 {[%emt 0:05:22]} 19. Ra3 {[%emt 0:01:30]} b6 {[%emt 0:03:01]} 20. g3 {[%emt 0:10:30]} Rbc8 {[%emt 0:02:24]} 21. Bxe8 {[%emt 0:04:02]} Rxe8 {[%emt 0:00:08]} 22. a5 {[%emt 0:00:30]} bxa5 {[%emt 0:16:53]} 23. Rb7 {[%emt 0:05:18]} Re7 {[%emt 0:06:41]} 24. Rxe7 {[%emt 0:00:50]} Nxe7 {[%emt 0:00:04]} 25. Rxa5 $11 {[%emt 0:00:14][%mdl 4096] Endgame KRN-KRN} Nd5 {[%emt 0:02:45]} 26. dxc5 {[%emt 0:15:03]} Nxc3 {[%emt 0:00:18]} 27. Nd4 {[%emt 0:01:09]} a6 {[%emt 0:10:35]} 28. c6 {[%emt 0:01:49]} Nb5 {[%emt 0:00:24] The position is equal.} 29. Rxa6 {[%emt 0:04:48]} Nxd4 {[%emt 0:00:12]} 30. exd4 {[%emt 0:00:24] KR-KR} Kf8 {[%emt 0:00:03]} 31. Kg2 {[%emt 0:03:37]} Ke7 {[%emt 0:00:05]} 32. Ra7+ {[%emt 0:00:15]} Ke8 {[%emt 0:00:06]} 33. Ra6 {[%emt 0:00:23]} Ke7 {[%emt 0:00:04]} 34. Kf3 {[%emt 0:00:24]} Kd6 {[%emt 0:00:57]} 35. Ra7 {[%emt 0:01:39]} Rc7 {[%emt 0:00:06]} 36. Rxc7 {[%emt 0:00:29]} Kxc7 {[%emt 0:00:05] KP-KP} 37. Ke4 {[%emt 0:00:11]} Kxc6 {[%emt 0:00:07]} 38. Ke5 {[%emt 0:00:09]} Kd7 {[%emt 0:00:11]} 39. d5 {[%emt 0:00:30]} exd5 {[%emt 0:00:21]} 40. Kxd5 {[%emt 0:00:05] K3P-K3P} Ke7 {[%emt 0:00:08]} 41. Ke5 {[%emt 0:01:58]} f6+ {[%emt 0:00:44]} 42. Kf5 {[%emt 0:03:15]} Kf7 {[%emt 0:00:17]} 43. g4 {[%emt 0:01:00]} Kg8 {[%emt 0:00:12]} 44. Kg6 {[%emt 0:00:32]} Kh8 {[%emt 0:00:05]} 45. Kf7 {[%emt 0:02:11]} Kh7 {[%emt 0:00:07]} 46. f4 {[%emt 0:01:01]} Kh8 $1 {[%emt 0:00:15]} 47. h4 {[%emt 0:00:28]} Kh7 {[%emt 0:00:04]} 48. g5 {[%emt 0:02:09]} hxg5 {[%emt 0:00:06]} 49. hxg5 {[%emt 0:00:13]} (49. fxg5 f5 50. h5 f4 51. Ke6 f3 52. h6 f2 53. Kd6 f1=Q 54. Kc5 Qf4 55. Kd5 gxh6 56. gxh6 Kxh6 57. Kc6 Qb4 58. Kd5 Kg6 59. Kc6 Kg5 60. Kd7 Qc5 61. Kd8 Kg6 62. Kd7 Kf6 63. Kd8 Ke6 64. Ke8 Qe7#) 49... fxg5 {[%emt 0:00:04]} 50. fxg5 {[%emt 0:00:05]} Kh8 $1 {[%emt 0:00:04]} 51. g6 {[%emt 0:00:16] Weighted Error Value: White=0.02 (flawless) /Black=0.02 (flawless)} 1/2-1/2

[Event "5th Sharjah Masters 2022"]
[Site "Sharjah"]
[Date "2022.05.24"]
[Round "4.7"]
[White "Erigaisi Arjun"]
[Black "Ganguly, Surya Shekhar"]
[Result "1/2-1/2"]
[ECO "B13"]
[WhiteElo "2675"]
[BlackElo "2616"]
[Annotator "TA"]
[PlyCount "111"]
[EventDate "2022.05.21"]
[EventType "swiss"]
[EventCountry "UAE"]
[SourceTitle "playchess.com"]
[Source "ChessBase"]
[SourceQuality "1"]
[TimeControl "5400+30"]

{[%evp 9,111,-4,0,1,0,-6,8,-36,0,0,0,0,0,0,0,0,1,0,7,-11,-11,-12,-11,-11,-11,-12,-12,-13,0,0,0,0,0,0,0,0,77,77,77,28,77,57,64,31,31,31,31,31,31,5,31,31,31,31,31,31,31,31,31,31,31,31,92,67,75,85,86,63,101,115,114,0,0,2,2,2,33,0,0,0,0,0,0,0,0,0,0,0,0,0,0,0,0,0,0,0,0,0,0,0,0,0,0,0]} 1. d4 {[%emt 0:03:33]} Nf6 {[%emt 0:03:33]} 2. Nc3 {[%emt 0:00:23]} d5 {[%emt 0:00:23]} 3. Bf4 {[%emt 0:00:07]} c5 {[%emt 0:01:04]} 4. e3 {[%emt 0:00:07]} cxd4 {[%emt 0:01:20]} 5. exd4 {[%emt 0:00:06]} a6 {[%emt 0:00:07]} 6. Nf3 {[%emt 0:00:07] B13: Caro-Kann: Exchange Variation and Panov-Botvinnik Attack.} Nc6 {[%emt 0:00:05]} 7. Ne5 {[%emt 0:00:06]} Bd7 {[%emt 0:00:07]} 8. g4 {[%emt 0:00:06] Recently 8.g3 got a lot of attention.} h6 {[%emt 0:00:44]} (8... e6 $5 {[%cal Rd8b6]}) 9. Nxc6 {[%emt 0:00:07]} Bxc6 {[%emt 0:00:49]} 10. Qf3 {[%emt 0:00:08]} e6 {[%emt 0:01:04]} 11. O-O-O {[%emt 0:01:15] [#]} Bb4 $146 {[%emt 0:18:14]} ({Predecessor:} 11... Rc8 12. Bd3 Qb6 13. Rhe1 Bb4 14. Bxh6 Rxh6 15. g5 Rxh2 16. gxf6 g5 17. Qg4 Qc7 18. Qxg5 {½-½ (34) Grayland,S (2352)-Mason,I (2272) ICCF email 2021}) 12. a3 {[%emt 0:00:30]} Bxc3 {[%emt 0:05:04]} 13. Qxc3 {[%emt 0:01:05]} Ne4 {[%emt 0:00:05]} 14. Qe1 {[%emt 0:00:07]} Qh4 {[%emt 0:05:22][%csl LRf2,LRg4]} 15. f3 {[%emt 0:18:34][%csl LRe4,LRh4]} Qf6 {[%emt 0:00:22]} 16. Qe3 {[%emt 0:00:26] [#]} Nf2 {[%emt 0:00:20]} 17. Qxf2 {[%emt 0:00:24]} Qxf4+ {[%emt 0:00:05]} 18. Kb1 {[%emt 0:00:13]} h5 {[%emt 0:04:55]} 19. Qg3 $36 {[%emt 0:01:49][%mdl 2048] White is more active.} g5 {[%emt 0:00:22]} 20. Qxf4 {[%emt 0:03:12]} gxf4 {[%emt 0:02:00]} 21. g5 {[%emt 0:00:07]} Rg8 {[%emt 0:09:51]} 22. h4 {[%emt 0:26:43]} Bb5 {[%emt 0:05:50]} (22... f6 $11 {keeps the balance.}) 23. Bxb5+ $16 {[%emt 0:01:55]} axb5 {[%emt 0:00:03][%mdl 4096] Endgame KRR-KRR} 24. Rd3 {[%emt 0:02:40]} (24. Rde1 $16) 24... Kd7 {[%emt 0:00:22]} (24... Ra4 $11 {deserves consideration.}) 25. Rb3 {[%emt 0:08:08]} Kc6 {[%emt 0:01:07]} 26. Re1 {[%emt 0:00:23]} Ra4 $1 {[%emt 0:00:54]} 27. c3 {[%emt 0:00:06]} Rc4 {[%emt 0:07:51]} 28. Kc2 {[%emt 0:00:31]} Ra4 {[%emt 0:00:32]} 29. Ra1 {[%emt 0:00:58]} Rga8 {[%emt 0:00:26]} 30. Kd3 {[%emt 0:01:20]} R4a5 {[%emt 0:07:08]} 31. Rb4 {[%emt 0:01:10]} Kc7 {[%emt 0:01:32]} 32. Kc2 {[%emt 0:00:35]} Kc6 {[%emt 0:00:47]} 33. Re1 {[%emt 0:02:45][%cal Og5g6]} Re8 {[%emt 0:04:46]} 34. Kb3 {[%emt 0:00:12]} Kd6 {[%emt 0:03:31]} 35. Ra1 {[%emt 0:00:28]} Kc6 {[%emt 0:02:27]} (35... Rea8 $14) 36. a4 {[%emt 0:01:34]} bxa4+ {[%emt 0:00:10]} 37. Rbxa4 {[%emt 0:00:28]} Rxa4 {[%emt 0:00:35]} 38. Rxa4 $14 {[%emt 0:00:07] KR-KR} Kd6 {[%emt 0:01:47]} 39. Ra7 {[%emt 0:05:16]} Kc6 {[%emt 0:00:54]} 40. Kb4 {[%emt 0:02:47]} (40. Ra1 $16) 40... e5 $1 $11 {[%emt 0:06:47]} 41. dxe5 {[%emt 0:00:06]} Rxe5 {[%emt 0:00:05]} 42. Ra8 {[%emt 0:00:06]} Re2 {[%emt 0:00:32]} 43. b3 {[%emt 0:00:34]} (43. Kb3 $5 {[%cal Ra8a4]}) 43... Re3 {[%emt 0:00:56] The position is equal.} 44. Rf8 {[%emt 0:00:20]} Rxf3 {[%emt 0:00:04]} 45. Rxf7 {[%emt 0:00:05]} Kd6 {[%emt 0:00:44]} 46. Rh7 {[%emt 0:03:03]} Rg3 {[%emt 0:02:23]} 47. Rxh5 {[%emt 0:00:11]} f3 {[%emt 0:00:13]} 48. Rh6+ {[%emt 0:01:02]} Ke5 {[%emt 0:00:02]} 49. Rf6 {[%emt 0:00:06]} d4 {[%emt 0:02:00]} 50. cxd4+ {[%emt 0:02:43]} Kxd4 {[%emt 0:00:02]} 51. g6 {[%emt 0:01:20] [#] And now h5 would win.} Ke3 {[%emt 0:00:11]} 52. Re6+ {[%emt 0:00:39]} Kd2 {[%emt 0:00:31]} 53. Rd6+ {[%emt 0:00:23]} Ke2 {[%emt 0:00:04] Hoping for ...f2.} 54. Re6+ {[%emt 0:00:05]} Kd2 {[%emt 0:00:06] ...f2 is the strong threat.} 55. Rd6+ {[%emt 0:00:04]} Ke2 {[%emt 0:00:06] Strongly threatening ...f2.} 56. Re6+ {[%emt 0:00:04] Weighted Error Value: White=0.10 (very precise) /Black=0.08 (flawless)} 1/2-1/2

[Event "5th Sharjah Masters 2022"]
[Site "Sharjah"]
[Date "2022.05.24"]
[Round "4.8"]
[White "Ponkratov, Pavel"]
[Black "Narayanan.S.L"]
[Result "1/2-1/2"]
[ECO "A33"]
[WhiteElo "2624"]
[BlackElo "2662"]
[Annotator "TA"]
[PlyCount "85"]
[EventDate "2022.05.21"]
[EventType "swiss"]
[EventCountry "UAE"]
[SourceTitle "playchess.com"]
[Source "ChessBase"]
[SourceQuality "1"]
[TimeControl "5400+30"]

{[%evp 17,85,0,0,0,4,0,0,20,2,9,0,0,0,0,0,0,0,0,0,0,0,-10,-4,-12,-12,-5,0,-32,-27,-36,0,0,-5,-56,-31,-79,-92,-72,-63,-74,60,78,66,70,206,158,137,184,174,162,172,151,195,88,171,121,211,100,79,41,63,37,139,144,172,0,0,0,10,0]} 1. Nf3 {[%emt 0:00:03]} Nf6 {[%emt 0:00:18]} 2. c4 {[%emt 0:00:07]} c5 {[%emt 0:01:20]} 3. Nc3 {[%emt 0:00:06]} Nc6 {[%emt 0:00:05]} 4. d4 {[%emt 0:01:07]} cxd4 {[%emt 0:00:09]} 5. Nxd4 {[%emt 0:00:04]} e6 {[%emt 0:00:14]} 6. g3 {[%emt 0:07:41]} Qb6 {[%emt 0:00:12]} 7. Nb3 {[%emt 0:10:17]} Ne5 {[%emt 0:00:53]} 8. e4 {[%emt 0:00:07]} Bb4 {[%emt 0:00:10]} 9. Qe2 {[%emt 0:00:05]} d6 $1 {[%emt 0:00:47]} 10. Bd2 $1 {[%emt 0:00:12][%mdl 4] is currently scoring better than 10.f4. A33: Symmetrical English: 2 Nf3 Nf6 3 d4 cxd4 4 Nxd4 e6 5 Nc3 Nc6.} a5 {[%emt 0:03:07]} 11. f4 {[%emt 0:02:23]} Nc6 {[%emt 0:00:10]} 12. Be3 {[%emt 0:11:13]} Qc7 {[%emt 0:02:08]} 13. Nd2 {[%emt 0:00:10]} Bxc3 {[%emt 0:14:46]} 14. bxc3 {[%emt 0:00:11]} b6 {[%emt 0:03:16] [#]} 15. Bg2 $146 {[%emt 0:01:34]} ({Predecessor:} 15. Rb1 Rb8 16. g4 Ba6 17. g5 Nd7 18. h4 Ne7 19. Qf2 O-O 20. Rh3 d5 21. exd5 exd5 {1-0 (40) Abbasov,F (2552)-Ninov,N (2515) La Fere 2008}) 15... Ba6 {[%emt 0:02:46]} 16. O-O {[%emt 0:03:02][%cal Oe4e5]} O-O {[%emt 0:04:51]} 17. Rab1 {[%emt 0:01:13]} Nd7 {[%emt 0:02:28][%cal Bf6d7,Bd7c5,Bc5a4][%mdl 32]} 18. Rfd1 {[%emt 0:00:45]} Rab8 {[%emt 0:08:10]} 19. Bf2 {[%emt 0:21:35]} Ne7 {[%emt 0:06:29]} 20. Rb2 {[%emt 0:07:45]} Rfd8 {[%emt 0:04:29]} 21. Qe3 {[%emt 0:05:17]} Nc5 {[%emt 0:01:46]} 22. h3 {[%emt 0:01:39]} Na4 {[%emt 0:06:18][%csl LRb2,LRc4] Pair of Knights!} 23. Rb3 {[%emt 0:02:36]} d5 {[%emt 0:12:06]} 24. cxd5 {[%emt 0:08:33]} exd5 {[%emt 0:00:08]} 25. Re1 {[%emt 0:00:05]} (25. e5 $11) 25... h6 $15 {[%emt 0:10:38] White must now prevent ...Nc5.} 26. Qf3 {[%emt 0:09:16]} (26. g4 $15) 26... dxe4 $17 {[%emt 0:04:02]} 27. Qxe4 {[%emt 0:03:07]} Rxd2 {[%emt 0:05:20]} 28. Qxa4 {[%emt 0:00:04][%cal Of2b6]} Bc4 {[%emt 0:04:32] [#]} (28... b5 $1 $17 {[%cal Rb5a4]} 29. Qe4 Nd5) 29. Rxe7 $1 $14 {[%emt 0:01:35]} Qxe7 {[%emt 0:01:32]} 30. Qxc4 {[%emt 0:00:04]} Rbd8 {[%emt 0:00:10]} (30... Rxa2 $14 31. Rxb6 Ra1+ 32. Kh2 Rxb6 33. Bxb6 a4) 31. Rb1 {[%emt 0:01:00]} ({Weaker is} 31. Bxb6 Rd1+ 32. Kh2 R8d2 $11) 31... Rd1+ {[%emt 0:01:17]} 32. Rxd1 {[%emt 0:00:06]} Rxd1+ {[%emt 0:00:03] [#]} 33. Bf1 $1 {[%emt 0:00:54]} Qd7 {[%emt 0:00:13]} 34. Bxb6 {[%emt 0:01:22] Strongly threatening Kf2.} Qxh3 {[%emt 0:00:32] [#]} 35. Bf2 {[%emt 0:00:06]} (35. Kf2 $1 $18 {and the rest is easy.} Rd2+ 36. Ke1) 35... Qd7 {[%emt 0:00:19]} (35... a4 $16) 36. Qe4 {[%emt 0:00:37]} (36. Qe2 $18) 36... a4 {[%emt 0:00:32]} (36... Ra1 $16) 37. a3 {[%emt 0:00:15]} (37. Kg2 $18) 37... Ra1 $16 {[%emt 0:00:36]} 38. Bd4 {[%emt 0:01:46] Threatens to win with Kg2.} (38. Qe2 $5 {[%cal Rf2d4]}) 38... Qh3 {[%emt 0:01:56][%csl Gh3][%cal Ra1f1]} 39. Qd3 {[%emt 0:00:45]} Qg4 {[%emt 0:00:18]} ({Black should play} 39... h5 $1 $14) 40. Kf2 {[%emt 0:01:04] And now Qb5 would win.} Rxa3 {[%emt 0:00:16]} 41. Qd2 {[%emt 0:00:36] Inhibits Ra2.} (41. Qb5 $18 {Intending Qe8+ and mate.} Ra2+ 42. Be2) 41... Qe6 $11 {[%emt 0:00:32] ...Ra2 is the strong threat.} 42. c4 {[%emt 0:00:04]} Rb3 {[%emt 0:00:14]} 43. Qc2 {[%emt 0:00:53] Weighted Error Value: White=0.24 (precise) /Black=0.21 (precise)} 1/2-1/2

[Event "5th Sharjah Masters 2022"]
[Site "Sharjah"]
[Date "2022.05.24"]
[Round "4.9"]
[White "Abdusattorov, Nodirbek"]
[Black "Aryan Chopra"]
[Result "1-0"]
[ECO "B33"]
[WhiteElo "2661"]
[BlackElo "2609"]
[Annotator "TA"]
[PlyCount "97"]
[EventDate "2022.05.21"]
[EventType "swiss"]
[EventCountry "UAE"]
[SourceTitle "playchess.com"]
[Source "ChessBase"]
[SourceQuality "1"]
[TimeControl "5400+30"]

{[%evp 19,97,0,0,0,0,0,14,14,23,0,13,16,15,0,0,-7,-18,-8,0,0,0,-13,24,9,49,47,42,46,98,102,78,102,115,98,116,108,105,105,103,104,104,95,93,106,100,72,72,72,107,99,92,79,87,80,137,100,132,115,132,94,98,94,148,147,158,158,158,158,158,152,282,282,269,262,262,262,261,261,261,261]} 1. e4 {[%emt 0:00:24]} c5 {[%emt 0:00:04]} 2. Nf3 {[%emt 0:00:17]} Nc6 {[%emt 0:00:10]} 3. d4 {[%emt 0:00:44]} cxd4 {[%emt 0:00:06]} 4. Nxd4 {[%emt 0:00:07]} Nf6 {[%emt 0:00:07]} 5. Nc3 {[%emt 0:00:17]} e5 {[%emt 0:00:05]} 6. Ndb5 {[%emt 0:00:44]} d6 {[%emt 0:00:07]} 7. Nd5 {[%emt 0:00:19]} Nxd5 {[%emt 0:00:07]} 8. exd5 {[%emt 0:00:05]} Nb8 {[%emt 0:00:16][%cal Bc6b8,Bb8d7,Bd7c5,Bc5e4][%mdl 32]} 9. a4 {[%emt 0:00:37]} Be7 {[%emt 0:00:09]} 10. Be2 {[%emt 0:00:12]} O-O {[%emt 0:00:11]} 11. O-O {[%emt 0:00:23] B33: Sicilian: Pelikan and Sveshnikov Variations.} Nd7 {[%emt 0:00:11]} 12. Bd2 {[%emt 0:01:48] is cutting edge theory.} a6 {[%emt 0:00:32]} 13. Na3 {[%emt 0:00:07] The position is equal.} a5 {[%emt 0:00:10]} 14. Nb5 {[%emt 0:02:44]} Nc5 {[%emt 0:00:41] [#]} 15. c3 $146 {[%emt 0:04:15]} ({Predecessor:} 15. c4 f5 16. b4 axb4 17. Bxb4 b6 18. Bxc5 bxc5 19. Qd2 Ra5 20. Rfb1 Bd7 21. Bd1 {1-0 (37) Rodchenkov,S (2346)-Popadic,D (2143) Chess.com INT 2022}) 15... Bd7 {[%emt 0:02:26]} 16. b4 {[%emt 0:04:02]} Ne4 {[%emt 0:04:13]} 17. Be1 {[%emt 0:00:05]} axb4 {[%emt 0:01:18]} 18. cxb4 {[%emt 0:00:24]} Rc8 {[%emt 0:00:23]} 19. a5 {[%emt 0:06:32]} Bg5 {[%emt 0:02:58]} 20. Qb3 {[%emt 0:18:48]} Bxb5 {[%emt 0:25:51]} 21. Bxb5 {[%emt 0:00:09]} Nd2 {[%emt 0:00:05]} 22. Bxd2 {[%emt 0:00:18]} Bxd2 {[%emt 0:00:04]} 23. Ra2 $1 {[%emt 0:04:37]} Qg5 {[%emt 0:00:11]} (23... Bg5 $14) 24. a6 $1 $16 {[%emt 0:01:49]} bxa6 {[%emt 0:03:10]} 25. Bxa6 {[%emt 0:00:02]} Rb8 {[%emt 0:01:36]} 26. b5 {[%emt 0:00:25][%cal Bb4b5,Bb5b6,Bb6b7][%mdl 32]} e4 {[%emt 0:02:16]} 27. b6 {[%emt 0:02:26]} e3 {[%emt 0:02:47]} 28. b7 $1 {[%emt 0:00:06]} exf2+ {[%emt 0:28:34]} 29. Kxf2 {[%emt 0:00:05]} ({Stronger than} 29. Rxf2 Be3 $17) 29... Rfe8 {[%emt 0:01:51]} 30. Kg1 {[%emt 0:00:32]} Be3+ {[%emt 0:05:27]} 31. Kh1 {[%emt 0:00:03]} Bc5 {[%emt 0:00:04]} 32. Re2 {[%emt 0:05:03]} Rxe2 {[%emt 0:01:26]} 33. Bxe2 {[%emt 0:00:03]} Qe5 {[%emt 0:03:22]} 34. Ba6 {[%emt 0:05:12]} g6 {[%emt 0:00:26]} 35. Qh3 {[%emt 0:00:22]} f5 {[%emt 0:02:33]} 36. Qh4 {[%emt 0:01:19]} Qe4 {[%emt 0:01:01]} (36... h5 $142 37. Qa4 Kh7) 37. Qf6 {[%emt 0:14:46]} Qe3 {[%emt 0:00:28]} 38. Qa1 {[%emt 0:06:45] White is more active.} Kf7 {[%emt 0:00:05]} 39. Re1 {[%emt 0:00:38]} Qd2 {[%emt 0:02:34]} 40. Re6 {[%emt 0:02:51]} Bd4 {[%emt 0:05:35]} (40... Qxd5 $142 41. Qf6+ Kg8) 41. Qe1 $1 {[%emt 0:00:54] Chess con chili.} Qxe1+ {[%emt 0:01:19]} 42. Rxe1 {[%emt 0:00:02][%mdl 4096] Endgame KRB-KRB} Ba7 {[%emt 0:00:17] [#]} 43. g3 $1 {[%emt 0:02:10]} Re8 {[%emt 0:03:10]} 44. Ra1 {[%emt 0:00:05] Hoping for Bb5.} Re7 {[%emt 0:01:41]} (44... Rb8 $16 {was called for.}) 45. Rc1 $18 {[%emt 0:00:33] White has a decisive advantage.} Kf6 {[%emt 0:00:07]} 46. Kg2 {[%emt 0:02:28] aiming for Rc8.} Re3 {[%emt 0:00:11]} 47. Rc8 {[%emt 0:00:13]} Ra3 {[%emt 0:00:11]} 48. Bb5 {[%emt 0:00:30]} Ra2+ {[%emt 0:00:14] [#]} 49. Kf1 $1 {[%emt 0:00:29] Weighted Error Value: White=0.05 (flawless) /Black=0.15 (very precise)} 1-0

[Event "5th Sharjah Masters 2022"]
[Site "Sharjah"]
[Date "2022.05.24"]
[Round "4.10"]
[White "Indjic, Aleksandar"]
[Black "Gukesh D"]
[Result "1/2-1/2"]
[ECO "A13"]
[WhiteElo "2621"]
[BlackElo "2659"]
[Annotator "TA"]
[PlyCount "76"]
[EventDate "2022.05.21"]
[EventType "swiss"]
[EventCountry "UAE"]
[SourceTitle "playchess.com"]
[Source "ChessBase"]
[SourceQuality "1"]
[TimeControl "5400+30"]

{[%evp 14,76,17,5,17,0,21,20,34,45,26,20,18,25,22,0,0,0,7,0,47,0,0,7,46,43,28,10,42,41,42,35,22,12,30,20,25,8,28,0,31,0,26,38,56,25,43,50,58,0,0,-10,0,0,0,0,0,-31,-12,-14,0,-16,0,0,0]} 1. c4 {[%emt 0:00:49]} e6 {[%emt 0:01:24]} 2. g3 {[%emt 0:04:36]} d5 {[%emt 0:01:16]} 3. Bg2 {[%emt 0:00:09]} Nf6 {[%emt 0:00:15]} 4. Nf3 {[%emt 0:02:12]} d4 {[%emt 0:02:34]} 5. O-O {[%emt 0:01:10]} c5 {[%emt 0:02:25]} 6. e3 {[%emt 0:00:40]} Nc6 {[%emt 0:01:40]} 7. exd4 {[%emt 0:00:08]} cxd4 {[%emt 0:00:06]} 8. d3 {[%emt 0:00:07]} Be7 {[%emt 0:03:32] A13: English Opening: 1...e6.} 9. Re1 $1 {[%emt 0:01:48] The main line 9.Re1 scores better than 9.Na3.} O-O {[%emt 0:00:08]} 10. Na3 {[%emt 0:01:22]} Bc5 {[%emt 0:06:26]} 11. Nc2 {[%emt 0:00:57]} a5 {[%emt 0:00:22][%cal Ba7a5,Ba5a4][%mdl 32] [#]} 12. Rb1 $146 {[%emt 0:01:29]} ({Predecessor:} 12. b3 Nd7 13. a3 e5 14. Rb1 Re8 15. b4 axb4 16. axb4 Bf8 17. Bg5 f6 18. Bd2 {1-0 (31) Parvanyan,A (2449)-Dubiel,J (2414) Magdeburg 2020}) 12... Re8 {[%emt 0:01:14]} 13. a3 {[%emt 0:06:23]} a4 $1 {[%emt 0:02:33]} 14. Ne5 {[%emt 0:06:56]} Nxe5 {[%emt 0:05:51]} 15. Rxe5 {[%emt 0:00:21]} Nd7 {[%emt 0:13:40]} 16. Re1 {[%emt 0:02:46]} e5 {[%emt 0:00:15]} (16... Bb6 $11 {is superior.}) 17. Nb4 {[%emt 0:01:25]} Bd6 {[%emt 0:01:19]} 18. f4 {[%emt 0:01:48]} exf4 {[%emt 0:10:25]} 19. Bxf4 {[%emt 0:00:18]} Bxf4 {[%emt 0:00:18]} 20. gxf4 {[%emt 0:00:13]} Nf6 {[%emt 0:03:40]} 21. Rxe8+ {[%emt 0:01:09]} Qxe8 {[%emt 0:00:08]} 22. Qe1 {[%emt 0:00:07]} Qd8 $1 {[%emt 0:01:43]} (22... Qe3+ 23. Qxe3 dxe3 24. Re1 $16) 23. Qh4 {[%emt 0:00:50]} (23. Qe5 {feels hotter.} Ng4 24. Qg5 Qe8 25. Nd5) 23... Qc7 {[%emt 0:02:12]} 24. Re1 {[%emt 0:00:18] [#] Hoping for Nd5.} Be6 {[%emt 0:00:23]} 25. Re5 {[%emt 0:06:04]} Rd8 {[%emt 0:04:28]} 26. Rb5 {[%emt 0:02:07]} (26. Qg3 $5 {[%cal Rf4f5]}) 26... Bc8 {[%emt 0:04:41]} (26... Bxc4 $5 27. Rxb7 (27. dxc4 Qxc4 28. Rxb7 d3 $17) 27... Qc8 $11) 27. Re5 {[%emt 0:03:38]} Be6 {[%emt 0:00:59]} 28. Qg3 {[%emt 0:05:43]} g6 {[%emt 0:00:47]} 29. Rb5 {[%emt 0:01:18]} (29. Qg5 $5 {[%cal Rg5f6]} Nh5 30. Qh4 $16) 29... Bc8 {[%emt 0:04:10]} 30. Qg5 {[%emt 0:00:49]} Rd6 {[%emt 0:04:04]} 31. Re5 {[%emt 0:26:54]} (31. f5 $14 Qe7 32. c5) 31... Kg7 $11 {[%emt 0:00:55]} 32. h3 {[%emt 0:05:32]} b6 {[%emt 0:00:47]} 33. Qh4 {[%emt 0:01:28]} Be6 {[%emt 0:06:28]} 34. Qf2 {[%emt 0:02:10]} h6 {[%emt 0:01:31]} 35. Re1 {[%emt 0:04:26]} Qd7 {[%emt 0:08:12]} 36. Kh2 {[%emt 0:00:27] The position is equal.} Qc7 {[%emt 0:00:42]} 37. Kg1 {[%emt 0:00:07]} Qd7 {[%emt 0:00:47]} 38. Kh2 {[%emt 0:00:07]} Qc7 {[%emt 0:00:04] Weighted Error Value: White=0.10 (very precise) /Black=0.10 (very precise)} 1/2-1/2